bitfinex/quotes_BTCUSD_20230115
["timestamp","ask_amount","ask_price","bid_price","bid_amount"]
[1673770525042,0.00662143,20742.0,20741.0,2.89446883]
[1673770525301,0.00662143,20742.0,20741.0,3.03939756]
[1673770525835,0.00340018,20742.0,20741.0,3.03939756]
[1673770526349,0.0078118,20743.0,20741.0,3.03939756]
[1673770526620,0.0078118,20743.0,20742.0,1.17975854]
[1673770526881,0.0078118,20743.0,20742.0,1.97722154]
[1673770527377,0.0078118,20743.0,20742.0,2.35493745]
[1673770527638,0.0088118,20743.0,20742.0,2.35493745]
[1673770527890,0.0078118,20743.0,20742.0,2.35493745]
[1673770528111,0.0088118,20743.0,20742.0,2.05222154]
[1673770529878,0.0088118,20743.0,20742.0,2.26815619]
[1673770530128,0.07015914,20744.0,20743.0,0.00403714]
[1673770530382,0.00697848,20745.0,20744.0,0.1]
[1673770530694,0.00697848,20745.0,20744.0,1.97758757]
[1673770532264,0.00697848,20745.0,20744.0,2.06958757]
[1673770532515,0.00697848,20745.0,20744.0,1.97758757]
[1673770532774,0.00697848,20745.0,20744.0,1.92629369]
[1673770533782,0.00697848,20745.0,20744.0,2.06958757]
[1673770534554,0.00697848,20745.0,20744.0,1.92629369]
[1673770537361,0.10871539,20745.0,20744.0,1.96935386]
[1673770537619,0.00697848,20745.0,20744.0,1.83965386]
[1673770539424,0.00697848,20745.0,20744.0,1.74765386]
[1673770539681,0.00797848,20745.0,20744.0,1.83265386]
[1673770539937,0.00797848,20745.0,20744.0,1.35959369]
[1673770540233,0.00797848,20745.0,20744.0,1.65959369]
[1673770541199,0.00797848,20745.0,20744.0,1.34630661]
[1673770544659,0.00797848,20745.0,20744.0,1.34646661]
[1673770544901,0.00797848,20745.0,20744.0,1.82853361]
[1673770545945,0.00797848,20745.0,20744.0,2.12853361]
[1673770546252,0.00797848,20745.0,20744.0,1.82853361]
[1673770546504,0.00797848,20745.0,20744.0,1.55975369]
[1673770547800,0.00797848,20745.0,20744.0,1.70304757]
[1673770548590,0.00797848,20745.0,20744.0,1.91799914]
[1673770548830,0.00797848,20745.0,20744.0,2.07904091]
[1673770549925,0.00797848,20745.0,20744.0,2.0789678]
[1673770550405,0.00797848,20745.0,20744.0,2.07933569]
[1673770550917,0.00797848,20745.0,20744.0,1.70341546]
[1673770552480,0.00797848,20745.0,20744.0,2.07999638]
[1673770552737,0.00788677,20745.0,20744.0,2.07999711]
[1673770552995,0.00788677,20745.0,20744.0,1.91836703]
[1673770553264,0.00788677,20745.0,20744.0,2.07998274]
[1673770554509,0.00788677,20745.0,20744.0,2.22303744]
[1673770554766,0.00788677,20745.0,20744.0,1.93632097]
[1673770555018,0.00788677,20745.0,20744.0,2.22303744]
[1673770556518,0.00788677,20745.0,20744.0,2.00808587]
[1673770556736,0.00788677,20745.0,20744.0,2.22374987]
[1673770557265,0.00788677,20745.0,20744.0,2.00808587]
[1673770557519,0.00788677,20745.0,20744.0,2.36857967]
[1673770557774,0.00788677,20745.0,20744.0,2.00808587]
[1673770558282,0.00788677,20745.0,20744.0,2.22375763]
[1673770558818,0.00788677,20745.0,20744.0,2.00808587]
[1673770559068,0.00788677,20745.0,20744.0,2.36857967]
[1673770559323,0.00788677,20745.0,20744.0,2.82820897]
[1673770559605,0.00788677,20745.0,20744.0,3.66927498]
[1673770559883,0.00788677,20745.0,20744.0,3.36911498]
[1673770560081,0.00788677,20745.0,20744.0,2.84888305]
[1673770560374,0.00788677,20745.0,20744.0,3.01079085]
[1673770560630,0.00788677,20745.0,20744.0,3.22654714]
[1673770561125,0.00788677,20745.0,20744.0,3.36940892]
[1673770561384,0.00788677,20745.0,20744.0,2.76504026]
[1673770561634,0.00788677,20745.0,20744.0,3.68495571]
[1673770562413,0.00788677,20745.0,20744.0,3.71237237]
[1673770562670,0.00788677,20745.0,20744.0,3.06504026]
[1673770562923,0.00788677,20745.0,20744.0,2.84928582]
[1673770563180,0.00788677,20745.0,20744.0,3.0651088]
[1673770563778,0.00788677,20745.0,20744.0,3.7189715]
[1673770564362,0.00788677,20745.0,20744.0,3.20977962]
[1673770564612,0.00788677,20745.0,20744.0,2.92306315]
[1673770565371,0.00788677,20745.0,20744.0,3.21087951]
[1673770565608,0.00788677,20745.0,20744.0,2.92306315]
[1673770566412,0.00788677,20745.0,20744.0,3.80611799]
[1673770566898,0.00788677,20745.0,20744.0,3.21090692]
[1673770567153,0.00788677,20745.0,20744.0,3.49484719]
[1673770567420,0.00788677,20745.0,20744.0,3.56749873]
[1673770567672,0.00788677,20745.0,20744.0,3.85535178]
[1673770568725,0.00788677,20745.0,20744.0,3.2109162]
[1673770569061,0.00788677,20745.0,20744.0,3.80124054]
[1673770569244,0.00788677,20745.0,20744.0,3.2109162]
[1673770569479,0.00788677,20745.0,20744.0,2.36985019]
[1673770571009,0.00788677,20745.0,20744.0,2.87333548]
[1673770571238,0.00788677,20745.0,20744.0,3.71731016]
[1673770571758,0.00788677,20745.0,20744.0,3.21382487]
[1673770572262,0.00788677,20745.0,20744.0,3.8573651]
[1673770572533,0.00788677,20745.0,20744.0,3.21382487]
[1673770573076,0.00788677,20745.0,20744.0,3.69122899]
[1673770573852,0.00788677,20745.0,20744.0,3.33073519]
[1673770574384,0.00788677,20745.0,20744.0,3.10280223]
[1673770574641,0.00788677,20745.0,20744.0,2.94089258]
[1673770574895,0.00788677,20745.0,20744.0,2.72492061]
[1673770575680,0.00788677,20745.0,20744.0,2.50959561]
[1673770575928,0.00788677,20745.0,20744.0,2.42459561]
[1673770575929,0.00688677,20745.0,20744.0,2.42459561]
[1673770576183,0.00788677,20745.0,20744.0,2.50259561]
[1673770576431,0.00788677,20745.0,20744.0,2.35862526]
[1673770576757,0.00788677,20745.0,20744.0,2.4157999]
[1673770576958,0.00788677,20745.0,20744.0,0.97914932]
[1673770577204,1.48023923,20745.0,20744.0,0.97914932]
[1673770577461,1.335705,20745.0,20744.0,0.97914932]
[1673770577735,1.72799574,20745.0,20744.0,0.97914932]
[1673770577994,1.72799574,20745.0,20744.0,0.90114932]
[1673770577995,1.94374232,20745.0,20744.0,0.90114932]
[1673770578259,1.94374232,20745.0,20744.0,0.97314932]
[1673770578260,1.80135331,20745.0,20744.0,0.97314932]
[1673770578524,1.80135331,20745.0,20744.0,0.90108553]
[1673770578525,2.78111836,20745.0,20744.0,0.90108553]
[1673770578781,1.87111796,20745.0,20744.0,0.05717464]
[1673770579035,1.87311796,20745.0,20744.0,0.12917464]
[1673770579311,2.78309171,20745.0,20744.0,0.12917464]
[1673770579567,2.08954038,20745.0,20744.0,0.12917464]
[1673770579814,1.80103559,20745.0,20744.0,0.12917464]
[1673770580073,2.9391948,20745.0,20744.0,0.12917464]
[1673770580341,2.57581554,20745.0,20744.0,0.05717464]
[1673770580606,2.57681554,20745.0,20744.0,0.08517464]
[1673770580891,2.57581554,20745.0,20744.0,0.05717464]
[1673770581152,0.09469549,20743.0,20738.0,3.17570849]
[1673770581404,0.13,20740.0,20738.0,0.49970849]
[1673770581669,0.321169,20739.0,20738.0,0.49970849]
[1673770581978,0.13,20740.0,20738.0,0.49970849]
[1673770582792,0.258,20739.0,20738.0,0.49970849]
[1673770583331,0.1289,20739.0,20738.0,0.069]
[1673770583603,0.1289,20739.0,20736.0,0.1]
[1673770583870,0.1309,20739.0,20738.0,0.069]
[1673770584115,0.1309,20739.0,20738.0,0.284401]
[1673770584367,0.1309,20739.0,20738.0,0.284402]
[1673770584879,0.1289,20739.0,20737.0,0.65947834]
[1673770584883,0.1309,20739.0,20737.0,0.65947834]
[1673770585135,0.1289,20739.0,20737.0,0.65947834]
[1673770585391,0.1289,20739.0,20738.0,0.215402]
[1673770586160,0.1289,20739.0,20737.0,0.65947834]
[1673770586400,0.1289,20739.0,20738.0,0.069]
[1673770586401,0.1309,20739.0,20738.0,0.069]
[1673770587444,0.1309,20739.0,20738.0,0.284402]
[1673770591432,0.1309,20739.0,20738.0,0.069]
[1673770591927,0.1309,20739.0,20738.0,0.284402]
[1673770592682,0.1309,20739.0,20738.0,0.069]
[1673770592923,0.1309,20739.0,20738.0,0.284402]
[1673770594676,0.1309,20739.0,20738.0,0.069]
[1673770595709,0.1309,20739.0,20738.0,0.284402]
[1673770596454,0.002,20739.0,20738.0,0.069]
[1673770598171,0.55544935,20739.0,20738.0,0.069]
[1673770599946,0.55544935,20739.0,20738.0,0.284402]
[1673770601423,0.55544935,20739.0,20738.0,0.069]
[1673770602469,0.55544935,20739.0,20738.0,0.284402]
[1673770602736,0.002,20739.0,20738.0,0.284402]
[1673770603010,0.002,20739.0,20738.0,0.8347205]
[1673770603264,0.002,20739.0,20738.0,1.3169265]
[1673770604780,0.0019369,20739.0,20738.0,1.3169265]
[1673770610632,0.0019369,20739.0,20738.0,1.24380969]
[1673770610880,0.0019369,20739.0,20738.0,1.83528905]
[1673770615433,0.0019369,20739.0,20738.0,1.9792594]
[1673770616976,0.0019369,20739.0,20738.0,1.61988705]
[1673770617525,0.6401458,20739.0,20738.0,1.02840769]
[1673770621659,0.78443435,20739.0,20738.0,1.02840769]
[1673770623962,0.78443435,20739.0,20738.0,0.54620169]
[1673770624210,0.6401458,20739.0,20738.0,0.54620169]
[1673770624969,0.78443435,20739.0,20738.0,0.54620169]
[1673770625225,0.78443435,20739.0,20738.0,0.069]
[1673770625481,1.51696755,20739.0,20738.0,0.069]
[1673770625749,2.65511784,20739.0,20738.0,0.069]
[1673770626015,2.42864964,20739.0,20738.0,0.069]
[1673770626795,0.05503317,20737.0,20735.0,0.00816074]
[1673770627038,0.1296,20736.0,20735.0,0.00816074]
[1673770627339,0.8117846,20736.0,20735.0,0.00816074]
[1673770627890,1.82079233,20736.0,20735.0,0.00816074]
[1673770628118,1.60418297,20736.0,20735.0,0.00816074]
[1673770628377,1.46177673,20736.0,20735.0,0.07216074]
[1673770628630,1.60418297,20736.0,20735.0,0.00816074]
[1673770628890,1.76542529,20736.0,20735.0,0.03816074]
[1673770629425,1.49510701,20736.0,20735.0,0.03816074]
[1673770629674,2.5609611,20736.0,20735.0,0.03816074]
[1673770629943,1.92917235,20736.0,20735.0,0.03816074]
[1673770630197,1.58910421,20736.0,20735.0,0.03816074]
[1673770630506,1.92917235,20736.0,20735.0,0.03816074]
[1673770630726,2.25083605,20736.0,20735.0,0.03816074]
[1673770630967,2.65881051,20736.0,20735.0,0.00816074]
[1673770631482,2.78181051,20736.0,20735.0,0.00816074]
[1673770631744,2.65881051,20736.0,20735.0,0.00816074]
[1673770632251,3.01894814,20736.0,20735.0,0.00816074]
[1673770632776,3.11194814,20736.0,20735.0,0.00816074]
[1673770633800,2.75181051,20736.0,20735.0,0.00816074]
[1673770634057,0.00426562,20734.0,20733.0,0.00816074]
[1673770634308,2.41914874,20734.0,20733.0,0.00816074]
[1673770634571,3.18424494,20734.0,20733.0,0.00816074]
[1673770634834,3.57899883,20734.0,20733.0,0.00816074]
[1673770636146,2.83197469,20734.0,20733.0,0.00816074]
[1673770636398,2.18422159,20734.0,20733.0,0.00816074]
[1673770636655,2.27722159,20734.0,20733.0,0.00816074]
[1673770637176,2.97026979,20734.0,20733.0,0.00816074]
[1673770637439,3.27026979,20734.0,20733.0,0.00816074]
[1673770637697,3.17726979,20734.0,20733.0,0.00816074]
[1673770637968,3.48595475,20734.0,20733.0,0.00816074]
[1673770638304,3.27026979,20734.0,20733.0,0.00816074]
[1673770639765,2.78641168,20734.0,20733.0,0.00816074]
[1673770640536,2.43343162,20734.0,20733.0,0.00816074]
[1673770640797,2.15978885,20734.0,20733.0,0.00816074]
[1673770641558,1.83861985,20734.0,20733.0,0.00816074]
[1673770641820,2.15978885,20734.0,20733.0,0.00816074]
[1673770642067,2.08431991,20734.0,20733.0,0.00816074]
[1673770642326,1.42853262,20734.0,20733.0,0.00816074]
[1673770642585,2.39009774,20734.0,20733.0,0.00816074]
[1673770643391,2.06892874,20734.0,20733.0,0.00816074]
[1673770643626,2.39009774,20734.0,20733.0,0.00816074]
[1673770644373,2.37460797,20734.0,20733.0,0.00816074]
[1673770644627,1.82153262,20734.0,20733.0,0.00816074]
[1673770644890,2.78176854,20734.0,20733.0,0.00816074]
[1673770645151,2.40152663,20734.0,20733.0,0.00816074]
[1673770645410,1.82153262,20734.0,20733.0,0.00816074]
[1673770645668,2.36359288,20734.0,20733.0,0.00816074]
[1673770646004,1.50036362,20734.0,20733.0,0.00816074]
[1673770646190,2.42046717,20734.0,20733.0,0.00816074]
[1673770646442,1.82153262,20734.0,20733.0,0.00816074]
[1673770646696,0.6571424,20733.0,20732.0,0.00248685]
[1673770646946,0.1374,20733.0,20732.0,0.00248685]
[1673770647205,0.4374,20733.0,20732.0,0.00248685]
[1673770647457,0.1,20732.0,20731.0,0.00819771]
[1673770647716,1.471815,20732.0,20731.0,0.00819771]
[1673770649012,1.564815,20732.0,20731.0,0.00819771]
[1673770650272,2.00299214,20732.0,20731.0,0.00819771]
[1673770652023,1.90299214,20732.0,20731.0,0.00819771]
[1673770652282,2.1186771,20732.0,20731.0,0.00819771]
[1673770653286,1.90299214,20732.0,20731.0,0.00819771]
[1673770653544,2.1186771,20732.0,20731.0,0.00819771]
[1673770654046,2.0256771,20732.0,20731.0,0.00819771]
[1673770654268,2.1186771,20732.0,20731.0,0.00819771]
[1673770654518,1.69141183,20732.0,20731.0,0.19892366]
[1673770654769,1.54762186,20732.0,20731.0,0.00819771]
[1673770656049,1.22645286,20732.0,20731.0,0.00819771]
[1673770656335,1.54762186,20732.0,20731.0,0.00819771]
[1673770657064,1.69141183,20732.0,20731.0,0.00819771]
[1673770657332,1.54762186,20732.0,20731.0,0.00819771]
[1673770657582,1.69141183,20732.0,20731.0,0.00819771]
[1673770659615,1.90709679,20732.0,20731.0,0.00819771]
[1673770659921,1.76330682,20732.0,20731.0,0.00819771]
[1673770660154,2.05089788,20732.0,20731.0,0.00819771]
[1673770660402,2.70178933,20732.0,20731.0,0.00819771]
[1673770660639,2.18898247,20732.0,20731.0,0.00819771]
[1673770660912,2.79779131,20732.0,20731.0,0.00819771]
[1673770661159,2.01709986,20732.0,20731.0,0.00819771]
[1673770663424,1.49260606,20732.0,20731.0,0.00819771]
[1673770663717,2.53355446,20732.0,20731.0,0.00819771]
[1673770664172,2.38702331,20732.0,20731.0,0.00819771]
[1673770664427,1.73961427,20732.0,20731.0,0.00819771]
[1673770664928,2.06634877,20732.0,20731.0,0.00819771]
[1673770666197,2.5001465,20732.0,20731.0,0.00819771]
[1673770666442,2.06634877,20732.0,20731.0,0.00819771]
[1673770666688,0.60937339,20731.0,20730.0,0.00322613]
[1673770666931,0.89541576,20731.0,20730.0,0.00322613]
[1673770667187,1.21658476,20731.0,20730.0,0.00322613]
[1673770667759,1.35328196,20731.0,20730.0,0.00322613]
[1673770667998,1.15576827,20731.0,20730.0,0.00322613]
[1673770668512,0.92759927,20731.0,20730.0,0.00322613]
[1673770668953,1.24876827,20731.0,20730.0,0.00322613]
[1673770669205,1.28371982,20731.0,20730.0,0.00322613]
[1673770669476,1.60488882,20731.0,20730.0,0.00322613]
[1673770669728,1.64476698,20731.0,20730.0,0.00322613]
[1673770669986,1.60488882,20731.0,20730.0,0.00322613]
[1673770670243,1.64495272,20731.0,20730.0,0.00322613]
[1673770671295,2.25510145,20731.0,20730.0,0.00322613]
[1673770671757,1.93393245,20731.0,20730.0,0.00322613]
[1673770672019,1.96612172,20731.0,20730.0,0.00322613]
[1673770672267,2.25515993,20731.0,20730.0,0.00322613]
[1673770672782,1.96612172,20731.0,20730.0,0.00322613]
[1673770673333,2.25515867,20731.0,20730.0,0.00322613]
[1673770673878,1.96612172,20731.0,20730.0,0.00322613]
[1673770675230,1.96621418,20731.0,20730.0,0.00322613]
[1673770675520,1.60488882,20731.0,20730.0,0.00322613]
[1673770677355,1.90488882,20731.0,20730.0,0.00322613]
[1673770677908,1.60488882,20731.0,20730.0,0.00322613]
[1673770678682,1.90607698,20731.0,20730.0,0.00322613]
[1673770678931,1.60488882,20731.0,20730.0,0.00322613]
[1673770680294,1.96623546,20731.0,20730.0,0.00322613]
[1673770680552,1.60488882,20731.0,20730.0,0.00322613]
[1673770682385,1.96627286,20731.0,20730.0,0.00322613]
[1673770682637,1.60488882,20731.0,20730.0,0.00322613]
[1673770682866,1.28371982,20731.0,20730.0,0.00322613]
[1673770683166,1.9662726,20731.0,20730.0,0.00322613]
[1673770683918,1.6451036,20731.0,20730.0,0.00322613]
[1673770684177,2.17564076,20731.0,20730.0,0.00322613]
[1673770685221,2.53708883,20731.0,20730.0,0.00322613]
[1673770685737,2.21591983,20731.0,20730.0,0.00322613]
[1673770685990,2.53708883,20731.0,20730.0,0.00322613]
[1673770687314,2.21591983,20731.0,20730.0,0.00322613]
[1673770687543,2.53708883,20731.0,20730.0,0.00322613]
[1673770688599,2.21591983,20731.0,20730.0,0.00322613]
[1673770688841,2.53708883,20731.0,20730.0,0.00322613]
[1673770689379,2.82627765,20731.0,20730.0,0.00322613]
[1673770689889,2.50510865,20731.0,20730.0,0.00322613]
[1673770690155,2.82627765,20731.0,20730.0,0.00322613]
[1673770690415,1.82594195,20731.0,20730.0,0.00322613]
[1673770691189,1.93023031,20731.0,20730.0,0.00322613]
[1673770691407,2.14710927,20731.0,20730.0,0.00322613]
[1673770691705,2.50370377,20731.0,20730.0,0.00322613]
[1673770692260,1.93023031,20731.0,20730.0,0.00322613]
[1673770692476,2.50371432,20731.0,20730.0,0.00322613]
[1673770692741,2.82488332,20731.0,20730.0,0.00322613]
[1673770692998,2.50371432,20731.0,20730.0,0.00322613]
[1673770693257,2.82488332,20731.0,20730.0,0.00322613]
[1673770694037,2.50371432,20731.0,20730.0,0.00322613]
[1673770694286,2.5356945,20731.0,20730.0,0.00322613]
[1673770694546,1.64377356,20731.0,20730.0,0.00322613]
[1673770694851,1.96494256,20731.0,20730.0,0.00322613]
[1673770695101,1.64377356,20731.0,20730.0,0.00322613]
[1673770695328,1.96494256,20731.0,20730.0,0.00322613]
[1673770695839,1.64377356,20731.0,20730.0,0.00322613]
[1673770696604,1.93298893,20731.0,20730.0,0.00322613]
[1673770697422,1.03833592,20731.0,20730.0,0.08870613]
[1673770697625,1.93679256,20731.0,20730.0,0.00322613]
[1673770697876,0.30990431,20731.0,20730.0,0.73793629]
[1673770698148,0.23759909,20731.0,20730.0,1.22032829]
[1673770698863,0.14459909,20731.0,20730.0,1.22032829]
[1673770699360,0.15259909,20731.0,20730.0,1.22632829]
[1673770700690,0.15259909,20731.0,20730.0,0.74393629]
[1673770702224,0.15259909,20731.0,20730.0,0.73684546]
[1673770703742,0.3695034,20731.0,20730.0,0.65523016]
[1673770704537,0.22490431,20731.0,20730.0,0.65523016]
[1673770704791,0.36942181,20731.0,20730.0,0.65523016]
[1673770705039,0.96082901,20731.0,20730.0,0.006]
[1673770705286,2.18001601,20731.0,20730.0,0.006]
[1673770706837,1.28199801,20731.0,20730.0,0.006]
[1673770707087,0.96082901,20731.0,20730.0,0.006]
[1673770707586,1.49879968,20731.0,20730.0,0.006]
[1673770707862,1.17763068,20731.0,20730.0,0.006]
[1673770708367,1.28199801,20731.0,20730.0,0.006]
[1673770708622,1.17765938,20731.0,20730.0,0.006]
[1673770709131,0.88844401,20731.0,20730.0,0.006]
[1673770710259,1.03299792,20731.0,20730.0,0.006]
[1673770710675,0.88844401,20731.0,20730.0,0.006]
[1673770711687,1.03299797,20731.0,20730.0,0.006]
[1673770712149,1.17765938,20731.0,20730.0,0.006]
[1673770712664,0.88844401,20731.0,20730.0,0.006]
[1673770712883,1.17765938,20731.0,20730.0,0.006]
[1673770715925,0.88844401,20731.0,20730.0,0.006]
[1673770716187,1.03299413,20731.0,20730.0,0.006]
[1673770717771,0.15255012,20731.0,20730.0,0.64713966]
[1673770718031,0.008,20731.0,20730.0,1.12953166]
[1673770720540,0.008,20731.0,20730.0,1.34503966]
[1673770722385,0.008,20731.0,20730.0,1.12953166]
[1673770723616,0.008,20731.0,20730.0,1.04405166]
[1673770723877,0.15255012,20731.0,20730.0,0.56165966]
[1673770725987,0.008,20731.0,20730.0,0.56165966]
[1673770726498,0.15255012,20731.0,20730.0,0.56165966]
[1673770730591,0.36938049,20731.0,20730.0,0.006]
[1673770731095,0.15255012,20731.0,20730.0,0.006]
[1673770731341,0.36938049,20731.0,20730.0,0.006]
[1673770731591,0.15255012,20731.0,20730.0,0.006]
[1673770732638,0.36938049,20731.0,20730.0,0.006]
[1673770735761,0.15255012,20731.0,20730.0,0.53223879]
[1673770738974,0.36938049,20731.0,20730.0,0.53223879]
[1673770739472,0.51404574,20731.0,20730.0,0.006]
[1673770739733,1.45636446,20731.0,20730.0,0.006]
[1673770740211,1.13519546,20731.0,20730.0,0.006]
[1673770740493,1.45642629,20731.0,20730.0,0.006]
[1673770741504,1.13525729,20731.0,20730.0,0.006]
[1673770741763,1.45642629,20731.0,20730.0,0.006]
[1673770742480,1.13525729,20731.0,20730.0,0.006]
[1673770742700,1.45642629,20731.0,20730.0,0.006]
[1673770744109,1.13525729,20731.0,20730.0,0.006]
[1673770744368,1.45642629,20731.0,20730.0,0.006]
[1673770744629,1.13525729,20731.0,20730.0,0.006]
[1673770744887,1.45642629,20731.0,20730.0,0.006]
[1673770745170,2.13899351,20731.0,20730.0,0.006]
[1673770745408,1.23953409,20731.0,20730.0,0.006]
[1673770745941,1.77754616,20731.0,20730.0,0.006]
[1673770746257,2.13899423,20731.0,20730.0,0.006]
[1673770746475,1.23953409,20731.0,20730.0,0.006]
[1673770747743,2.13956512,20731.0,20730.0,0.006]
[1673770748258,1.8503539,20731.0,20730.0,0.006]
[1673770748512,2.13954752,20731.0,20730.0,0.006]
[1673770750802,1.8503539,20731.0,20730.0,0.006]
[1673770752608,1.8423539,20731.0,20729.0,0.00945823]
[1673770752894,1.14910935,20730.0,20729.0,0.00945823]
[1673770753124,1.84215295,20730.0,20729.0,0.00934946]
[1673770753943,2.13125421,20730.0,20729.0,0.00934946]
[1673770754162,2.10159688,20730.0,20729.0,0.00934946]
[1673770754418,2.09294222,20730.0,20729.0,0.00934946]
[1673770754671,2.40594222,20730.0,20729.0,0.01034946]
[1673770755449,2.82673995,20730.0,20729.0,0.00934946]
[1673770755698,0.00898231,20728.0,20727.0,0.00936757]
[1673770755956,0.29793035,20728.0,20727.0,0.00936757]
[1673770756223,1.58397735,20728.0,20727.0,0.00936757]
[1673770756775,3.24447236,20728.0,20727.0,0.00936757]
[1673770757025,2.75124311,20728.0,20727.0,0.00936757]
[1673770757302,3.18504084,20728.0,20727.0,0.00936757]
[1673770757565,3.18504084,20728.0,20725.0,0.00945823]
[1673770757566,0.00467152,20726.0,20725.0,0.00945823]
[1673770757836,1.46062652,20726.0,20725.0,0.00945823]
[1673770758085,3.20684004,20726.0,20725.0,0.00945823]
[1673770758346,0.1,20725.0,20724.0,0.00978249]
[1673770758620,0.858769,20725.0,20724.0,0.00978249]
[1673770758877,2.42673911,20725.0,20724.0,0.00978249]
[1673770759159,2.13823891,20725.0,20724.0,0.00978249]
[1673770759679,2.13823891,20725.0,20721.0,0.01338154]
[1673770759680,0.1,20724.0,20721.0,0.01338154]
[1673770759941,1.2570154,20723.0,20721.0,0.01338154]
[1673770760222,2.57196966,20723.0,20721.0,0.01338154]
[1673770760489,2.42266211,20723.0,20721.0,0.01338154]
[1673770761024,1.906634,20723.0,20721.0,0.53096321]
[1673770761280,1.294779,20723.0,20721.0,0.53096321]
[1673770761531,0.491055,20723.0,20721.0,0.53096321]
[1673770762000,0.812224,20723.0,20721.0,0.53096321]
[1673770762252,0.491055,20723.0,20721.0,0.01338154]
[1673770762504,1.41959614,20723.0,20721.0,0.01338154]
[1673770762775,1.09842714,20723.0,20721.0,0.01338154]
[1673770763044,1.41959614,20723.0,20721.0,0.01338154]
[1673770763286,1.09842714,20723.0,20721.0,0.01338154]
[1673770763541,1.51059614,20723.0,20721.0,0.01338154]
[1673770763804,1.18942714,20723.0,20721.0,0.01338154]
[1673770764074,1.51059614,20723.0,20721.0,0.01338154]
[1673770764614,1.78592613,20723.0,20721.0,0.01338154]
[1673770764861,2.10709513,20723.0,20721.0,0.01338154]
[1673770765138,1.78592613,20723.0,20721.0,0.01338154]
[1673770765390,1.49972299,20723.0,20721.0,0.01338154]
[1673770765661,1.62972299,20723.0,20721.0,0.01338154]
[1673770765935,2.41784233,20723.0,20721.0,0.01338154]
[1673770766199,2.27381966,20723.0,20721.0,0.01338154]
[1673770766463,1.79126466,20723.0,20721.0,0.01338154]
[1673770767042,1.70026466,20723.0,20721.0,0.01338154]
[1673770767300,1.79126466,20723.0,20721.0,0.01338154]
[1673770768045,1.19476567,20723.0,20721.0,0.01338154]
[1673770768342,1.49476567,20723.0,20721.0,0.01338154]
[1673770769115,1.19476567,20723.0,20721.0,0.01338154]
[1673770770162,1.49476567,20723.0,20721.0,0.01338154]
[1673770770416,1.67732067,20723.0,20721.0,0.01338154]
[1673770770953,0.420669,20723.0,20722.0,0.68094192]
[1673770771230,0.091,20723.0,20722.0,0.49021597]
[1673770772003,0.57631969,20724.0,20722.0,0.49021597]
[1673770772297,0.091,20723.0,20722.0,0.49021597]
[1673770773105,1.54141169,20724.0,20722.0,0.49021597]
[1673770773370,1.63241169,20724.0,20722.0,0.49021597]
[1673770773636,1.54141169,20724.0,20722.0,0.49021597]
[1673770773901,0.412169,20723.0,20722.0,0.49021597]
[1673770774405,0.091,20723.0,20722.0,0.49021597]
[1673770774963,1.54141169,20724.0,20722.0,0.49021597]
[1673770775179,1.63241169,20724.0,20722.0,0.49021597]
[1673770775434,0.321169,20723.0,20722.0,0.49021597]
[1673770775700,0.091,20723.0,20722.0,0.49021597]
[1673770775953,1.54141169,20724.0,20722.0,0.49021597]
[1673770776212,0.321169,20723.0,20722.0,0.01818875]
[1673770776747,0.91825512,20723.0,20722.0,0.01818875]
[1673770777010,0.50608612,20723.0,20722.0,0.01818875]
[1673770777268,1.30981012,20723.0,20722.0,0.01818875]
[1673770778030,1.42704112,20723.0,20722.0,0.01818875]
[1673770778281,2.25005907,20723.0,20722.0,0.01818875]
[1673770778538,2.25005907,20723.0,20720.0,0.01404069]
[1673770778539,0.00054398,20721.0,20720.0,0.01404069]
[1673770778796,0.10228089,20721.0,20720.0,0.01404069]
[1673770779076,1.89851898,20721.0,20720.0,0.01404069]
[1673770779337,2.20866899,20721.0,20720.0,0.01404069]
[1673770779631,3.248661,20721.0,20720.0,0.01404069]
[1673770779893,3.331661,20721.0,20720.0,0.01404069]
[1673770780153,3.248661,20721.0,20720.0,0.01404069]
[1673770780439,3.32066317,20721.0,20719.0,0.41318875]
[1673770780717,1.90073127,20720.0,20719.0,0.40615579]
[1673770780972,3.37821331,20720.0,20719.0,0.40615579]
[1673770781574,3.37820757,20720.0,20719.0,0.40615579]
[1673770781819,3.09067604,20720.0,20719.0,0.01243036]
[1673770782066,3.48145806,20720.0,20719.0,0.01243036]
[1673770782321,3.39045806,20720.0,20719.0,0.01243036]
[1673770782568,3.39045806,20720.0,20715.0,0.01581411]
[1673770782569,0.00465852,20718.0,20715.0,0.01581411]
[1673770783005,0.13,20716.0,20715.0,0.01581411]
[1673770783263,1.342387,20716.0,20715.0,0.01581411]
[1673770783803,1.99994372,20716.0,20715.0,0.01581411]
[1673770784061,1.91748428,20716.0,20715.0,0.01581411]
[1673770784344,1.90971666,20716.0,20715.0,0.01581411]
[1673770784603,1.342387,20716.0,20715.0,0.01581411]
[1673770784859,1.9977463,20716.0,20715.0,0.01581411]
[1673770785215,1.5587463,20716.0,20715.0,0.20654006]
[1673770785531,0.96539,20717.0,20715.0,0.55229982]
[1673770785532,0.98599297,20717.0,20715.0,0.55229982]
[1673770785792,0.091,20716.0,20715.0,0.55229982]
[1673770787379,0.5740489,20716.0,20715.0,0.01581411]
[1673770787634,0.8952179,20716.0,20715.0,0.01581411]
[1673770788174,0.9852179,20716.0,20715.0,0.01581411]
[1673770788413,0.6640489,20716.0,20715.0,0.01581411]
[1673770788674,0.9852179,20716.0,20715.0,0.01581411]
[1673770788933,0.6640489,20716.0,20715.0,0.01581411]
[1673770789704,0.9852179,20716.0,20715.0,0.01581411]
[1673770790733,0.6640489,20716.0,20715.0,0.01581411]
[1673770790996,0.09,20716.0,20715.0,0.50489293]
[1673770793160,0.09,20716.0,20715.0,0.20654006]
[1673770793349,0.09,20716.0,20715.0,0.84396211]
[1673770794437,0.09,20716.0,20715.0,0.84476211]
[1673770794604,0.00465852,20718.0,20715.0,0.84476211]
[1673770794894,0.00465852,20718.0,20715.0,0.98185511]
[1673770795409,0.008,20716.0,20715.0,0.99085511]
[1673770795674,0.008,20716.0,20715.0,1.33696011]
[1673770796162,0.00465852,20718.0,20715.0,1.32796011]
[1673770796412,0.00465852,20718.0,20716.0,0.1305]
[1673770796413,0.01265852,20718.0,20716.0,0.1305]
[1673770796684,0.00465852,20718.0,20717.0,0.215683]
[1673770796952,0.00465852,20718.0,20717.0,0.40640795]
[1673770797224,0.00465852,20718.0,20717.0,0.828877]
[1673770797472,0.01265852,20718.0,20717.0,0.828877]
[1673770797983,0.00465852,20718.0,20717.0,0.828877]
[1673770798327,0.01265852,20718.0,20717.0,0.837877]
[1673770799293,0.01265852,20718.0,20717.0,1.31702421]
[1673770799546,0.01265852,20718.0,20717.0,0.83432921]
[1673770800346,0.01265852,20718.0,20717.0,0.48814721]
[1673770803150,0.01265852,20718.0,20717.0,0.70382821]